[Event "*** Titled Tuesday Blitz"]
[Site "Chess.com"]
[Date "2020.04.28"]
[Round "4"]
[White "FightingChess"]
[Black "ulises2013"]
[Result "0-1"]
[WhiteElo "2371"]
[BlackElo "2622"]
[TimeControl "180+1"]
[EndTime "10:40:13 PDT"]
[Termination "ulises2013 won by resignation"]

1. e4 {[%clk 0:03:00.9]} 1... g6 {[%clk 0:03:00.3]} 2. d4 {[%clk 0:03:00.9]}
2... Bg7 {[%clk 0:02:59.1]} 3. Nc3 {[%clk 0:03:01.5]} 3... c5 {[%clk 0:02:57.4]}
4. Nf3 {[%clk 0:03:00]} 4... Qa5 {[%clk 0:02:57.3]} 5. Be3 {[%clk 0:02:52.3]}
5... Nf6 {[%clk 0:02:57.2]} 6. Qd2 {[%clk 0:02:41.8]} 6... Nc6 {[%clk
0:02:57.1]} 7. d5 {[%clk 0:02:34.2]} 7... Nb4 {[%clk 0:02:56.9]} 8. Bd3 {[%clk
0:01:59.8]} 8... O-O {[%clk 0:02:39.1]} 9. O-O {[%clk 0:01:59.2]} 9... Nxd3
{[%clk 0:02:37.3]} 10. cxd3 {[%clk 0:01:58.3]} 10... d6 {[%clk 0:02:35.1]} 11.
h3 {[%clk 0:01:51.8]} 11... b5 {[%clk 0:02:29.8]} 12. Bh6 {[%clk 0:01:51.3]}
12... b4 {[%clk 0:02:29.4]} 13. Nd1 {[%clk 0:01:43.3]} 13... e6 {[%clk
0:02:27.1]} 14. Bxg7 {[%clk 0:01:37.1]} 14... Kxg7 {[%clk 0:02:26.6]} 15. dxe6
{[%clk 0:01:31]} 15... Bxe6 {[%clk 0:02:27.5]} 16. Ne3 {[%clk 0:01:30.9]} 16...
d5 {[%clk 0:02:21.2]} 17. e5 {[%clk 0:01:30.8]} 17... Nd7 {[%clk 0:02:19.5]} 18.
d4 {[%clk 0:01:31]} 18... c4 {[%clk 0:02:14.9]} 19. a3 {[%clk 0:01:31]} 19... c3
{[%clk 0:02:12.3]} 20. bxc3 {[%clk 0:01:31.9]} 20... bxc3 {[%clk 0:02:12.6]} 21.
Qd3 {[%clk 0:01:20.6]} 21... Rfc8 {[%clk 0:02:11.8]} 22. Rfc1 {[%clk 0:01:19.8]}
22... Nb6 {[%clk 0:02:07.2]} 23. Rc2 {[%clk 0:01:04.3]} 23... Na4 {[%clk
0:02:05.7]} 24. h4 {[%clk 0:00:57.1]} 24... Rab8 {[%clk 0:02:00.2]} 25. Rac1
{[%clk 0:00:55]} 25... Qb5 {[%clk 0:01:59.3]} 26. Qd1 {[%clk 0:00:35.4]} 26...
Qb3 {[%clk 0:01:53.3]} 27. Ng5 {[%clk 0:00:28.2]} 27... Qxa3 {[%clk 0:01:34.5]}
28. Qf3 {[%clk 0:00:24.1]} 28... Qe7 {[%clk 0:01:32.7]} 29. Ng4 {[%clk
0:00:17.3]} 29... Rb2 {[%clk 0:01:18.5]} 30. Nf6 {[%clk 0:00:16.4]} 30... Rxc2
{[%clk 0:01:14]} 31. Rxc2 {[%clk 0:00:17.3]} 31... Rb8 {[%clk 0:01:14.9]} 32. h5
{[%clk 0:00:09.5]} 32... Bf5 {[%clk 0:01:05.6]} 33. Rc1 {[%clk 0:00:09]} 33...
c2 {[%clk 0:01:03.7]} 34. hxg6 {[%clk 0:00:07.5]} 34... Rb1 {[%clk 0:00:48.1]}
35. gxh7 {[%clk 0:00:03]} 35... Rxc1+ {[%clk 0:00:46.6]} 36. Kh2 {[%clk
0:00:03.7]} 36... Rh1+ {[%clk 0:00:45]} 37. Kxh1 {[%clk 0:00:04.2]} 37... c1=Q+
{[%clk 0:00:45.3]} 38. Kh2 {[%clk 0:00:04.7]} 38... Qxg5 {[%clk 0:00:45.9]} 39.
Nh5+ {[%clk 0:00:02.5]} 39... Kxh7 {[%clk 0:00:44.5]} 40. Ng3 {[%clk 0:00:02.7]}
40... Bg6 {[%clk 0:00:43.4]} 0-1

[Event "*** Titled Tuesday Blitz"]
[Site "Chess.com"]
[Date "2020.04.28"]
[Round "4"]
[White "Nbk90"]
[Black "PetrolulSah"]
[Result "1-0"]
[WhiteElo "2574"]
[BlackElo "2209"]
[TimeControl "180+1"]
[EndTime "10:40:13 PDT"]
[Termination "Nbk90 won on time"]

1. e4 {[%clk 0:02:57.9]} 1... e5 {[%clk 0:02:59.1]} 2. Nf3 {[%clk 0:02:56.8]}
2... Nc6 {[%clk 0:02:57.7]} 3. Bb5 {[%clk 0:02:56.5]} 3... a6 {[%clk 0:02:57]}
4. Ba4 {[%clk 0:02:56.2]} 4... Nf6 {[%clk 0:02:56.3]} 5. d3 {[%clk 0:02:55.8]}
5... b5 {[%clk 0:02:49.3]} 6. Bb3 {[%clk 0:02:55.4]} 6... Be7 {[%clk 0:02:48.6]}
7. a3 {[%clk 0:02:54.4]} 7... O-O {[%clk 0:02:48]} 8. Nc3 {[%clk 0:02:54.2]}
8... d6 {[%clk 0:02:44.3]} 9. O-O {[%clk 0:02:53.4]} 9... Nb8 {[%clk 0:02:41.6]}
10. h3 {[%clk 0:02:43.7]} 10... Nbd7 {[%clk 0:02:40.2]} 11. Re1 {[%clk
0:02:43.8]} 11... Bb7 {[%clk 0:02:39.8]} 12. Ba2 {[%clk 0:02:37.4]} 12... c5
{[%clk 0:02:33.6]} 13. Nd2 {[%clk 0:02:24.9]} 13... b4 {[%clk 0:02:24.5]} 14.
axb4 {[%clk 0:02:18.4]} 14... cxb4 {[%clk 0:02:25.4]} 15. Ne2 {[%clk 0:02:18.8]}
15... d5 {[%clk 0:02:21.6]} 16. Ng3 {[%clk 0:02:17]} 16... dxe4 {[%clk
0:02:10.2]} 17. Ndxe4 {[%clk 0:02:11.9]} 17... Nxe4 {[%clk 0:02:09.8]} 18. dxe4
{[%clk 0:02:11.8]} 18... Nc5 {[%clk 0:02:02.9]} 19. Qf3 {[%clk 0:02:10.1]} 19...
Ne6 {[%clk 0:01:54.1]} 20. Be3 {[%clk 0:01:51.9]} 20... Bc5 {[%clk 0:01:19.4]}
21. Bxe6 {[%clk 0:01:33.9]} 21... Bxe3 {[%clk 0:01:18]} 22. Bxf7+ {[%clk
0:01:31.6]} 22... Rxf7 {[%clk 0:01:16.6]} 23. Qxe3 {[%clk 0:01:31.8]} 23... Rf4
{[%clk 0:01:12.8]} 24. Rad1 {[%clk 0:01:29.2]} 24... Qf8 {[%clk 0:01:10.6]} 25.
Rd7 {[%clk 0:01:18.1]} 25... Bc6 {[%clk 0:01:09.2]} 26. Rd2 {[%clk 0:01:11.7]}
26... a5 {[%clk 0:01:02.2]} 27. f3 {[%clk 0:01:09.8]} 27... Rf6 {[%clk
0:00:51.2]} 28. Nf5 {[%clk 0:01:07]} 28... a4 {[%clk 0:00:48.3]} 29. Red1 {[%clk
0:00:59.6]} 29... a3 {[%clk 0:00:46.4]} 30. b3 {[%clk 0:00:54.7]} 30... Bb5
{[%clk 0:00:20.5]} 31. Qg5 {[%clk 0:00:52.7]} 31... Kh8 {[%clk 0:00:13.7]} 32.
Rd8 {[%clk 0:00:48.3]} 32... Rxd8 {[%clk 0:00:09.9]} 33. Rxd8 {[%clk 0:00:47.2]}
33... Rxf5 {[%clk 0:00:04.7]} 34. exf5 {[%clk 0:00:45.4]} 1-0

[Event "*** Titled Tuesday Blitz"]
[Site "Chess.com"]
[Date "2020.04.28"]
[Round "4"]
[White "Karina_Ivanova"]
[Black "ErikRonka"]
[Result "0-1"]
[WhiteElo "2211"]
[BlackElo "2427"]
[TimeControl "180+1"]
[EndTime "10:40:15 PDT"]
[Termination "ErikRonka won by resignation"]

1. Nf3 {[%clk 0:03:00.5]} 1... d5 {[%clk 0:02:59.3]} 2. g3 {[%clk 0:02:57.6]}
2... Nf6 {[%clk 0:02:58.6]} 3. Bg2 {[%clk 0:02:57.3]} 3... Bg4 {[%clk
0:02:58.2]} 4. h3 {[%clk 0:02:56.1]} 4... Bh5 {[%clk 0:02:56.2]} 5. O-O {[%clk
0:02:55.6]} 5... Nbd7 {[%clk 0:02:55.9]} 6. d4 {[%clk 0:02:55.3]} 6... e6 {[%clk
0:02:55.6]} 7. c4 {[%clk 0:02:55.3]} 7... c6 {[%clk 0:02:55.4]} 8. Nc3 {[%clk
0:02:52.2]} 8... Bd6 {[%clk 0:02:51]} 9. Nd2 {[%clk 0:02:51]} 9... O-O {[%clk
0:02:34.5]} 10. Qc2 {[%clk 0:02:47]} 10... Bg6 {[%clk 0:02:30.7]} 11. e4 {[%clk
0:02:45.6]} 11... Rc8 {[%clk 0:02:05]} 12. Rd1 {[%clk 0:02:36.7]} 12... c5
{[%clk 0:01:51.3]} 13. dxc5 {[%clk 0:02:29.3]} 13... Bxc5 {[%clk 0:01:49.2]} 14.
Qb3 {[%clk 0:02:15.8]} 14... d4 {[%clk 0:01:17.1]} 15. Ne2 {[%clk 0:02:12.8]}
15... Bb6 {[%clk 0:01:12.1]} 16. Kh2 {[%clk 0:02:03.1]} 16... Nc5 {[%clk
0:01:09.9]} 17. Qa3 {[%clk 0:01:46.4]} 17... Ncxe4 {[%clk 0:01:03.5]} 18. Nxe4
{[%clk 0:01:45.9]} 18... Bxe4 {[%clk 0:01:00.2]} 19. f3 {[%clk 0:01:41.8]} 19...
Bc6 {[%clk 0:00:59.1]} 20. c5 {[%clk 0:01:39]} 20... Bc7 {[%clk 0:00:32.9]} 21.
Rxd4 {[%clk 0:01:25.3]} 21... Qe7 {[%clk 0:00:32.3]} 22. Bg5 {[%clk 0:01:18.5]}
22... h6 {[%clk 0:00:30.9]} 23. Be3 {[%clk 0:01:17.2]} 23... e5 {[%clk
0:00:30.5]} 24. Rd2 {[%clk 0:01:12]} 24... Nd5 {[%clk 0:00:29]} 25. Bf2 {[%clk
0:01:09]} 25... h5 {[%clk 0:00:28.2]} 26. h4 {[%clk 0:01:02.9]} 26... Nf6 {[%clk
0:00:21.9]} 27. Kg1 {[%clk 0:00:48.1]} 27... e4 {[%clk 0:00:21.3]} 28. Nd4
{[%clk 0:00:43.6]} 28... exf3 {[%clk 0:00:18.9]} 29. Nxc6 {[%clk 0:00:41.4]}
29... bxc6 {[%clk 0:00:19.8]} 30. Bxf3 {[%clk 0:00:40.2]} 30... Nd5 {[%clk
0:00:19.8]} 31. Bxh5 {[%clk 0:00:26.6]} 31... Qf6 {[%clk 0:00:19.6]} 32. Rf1
{[%clk 0:00:19.8]} 32... Qh6 {[%clk 0:00:17.7]} 33. Bf3 {[%clk 0:00:18.8]} 33...
Qxd2 {[%clk 0:00:16.7]} 0-1

[Event "*** Titled Tuesday Blitz"]
[Site "Chess.com"]
[Date "2020.04.28"]
[Round "4"]
[White "suyu28"]
[Black "sergiochess83"]
[Result "0-1"]
[WhiteElo "2599"]
[BlackElo "2831"]
[TimeControl "180+1"]
[EndTime "10:40:18 PDT"]
[Termination "sergiochess83 won on time"]

1. d4 {[%clk 0:02:55.1]} 1... Nf6 {[%clk 0:02:58]} 2. c4 {[%clk 0:02:55.4]} 2...
e6 {[%clk 0:02:57.5]} 3. Nf3 {[%clk 0:02:55.6]} 3... d5 {[%clk 0:02:57.2]} 4.
Nc3 {[%clk 0:02:54.5]} 4... c5 {[%clk 0:02:56.8]} 5. cxd5 {[%clk 0:02:54.1]}
5... Nxd5 {[%clk 0:02:56.5]} 6. e4 {[%clk 0:02:51.2]} 6... Nxc3 {[%clk
0:02:55.6]} 7. bxc3 {[%clk 0:02:52.1]} 7... cxd4 {[%clk 0:02:56.5]} 8. cxd4
{[%clk 0:02:53]} 8... Bb4+ {[%clk 0:02:56.4]} 9. Bd2 {[%clk 0:02:53.7]} 9...
Bxd2+ {[%clk 0:02:55.8]} 10. Qxd2 {[%clk 0:02:54.6]} 10... O-O {[%clk 0:02:56]}
11. Bc4 {[%clk 0:02:55.1]} 11... Nd7 {[%clk 0:02:55.1]} 12. O-O {[%clk
0:02:55.7]} 12... b6 {[%clk 0:02:54.9]} 13. Rfe1 {[%clk 0:02:56.3]} 13... Bb7
{[%clk 0:02:54.7]} 14. Rad1 {[%clk 0:02:56.8]} 14... Rc8 {[%clk 0:02:54.8]} 15.
Bd3 {[%clk 0:02:57.1]} 15... h6 {[%clk 0:02:46.7]} 16. h3 {[%clk 0:02:55.5]}
16... Re8 {[%clk 0:02:45.4]} 17. Qf4 {[%clk 0:02:54.8]} 17... Qc7 {[%clk
0:02:41.8]} 18. Qh4 {[%clk 0:02:52.2]} 18... Nf8 {[%clk 0:02:41.5]} 19. Ne5
{[%clk 0:02:42.2]} 19... Red8 {[%clk 0:02:33.1]} 20. Bb1 {[%clk 0:02:39.7]}
20... Nd7 {[%clk 0:02:18.8]} 21. Ng4 {[%clk 0:02:35.9]} 21... Nf8 {[%clk
0:02:07.7]} 22. e5 {[%clk 0:02:30]} 22... Rd7 {[%clk 0:02:02.1]} 23. Re3 {[%clk
0:02:19.8]} 23... Ng6 {[%clk 0:01:53.2]} 24. Qg3 {[%clk 0:01:53.8]} 24... Rcd8
{[%clk 0:01:37]} 25. Red3 {[%clk 0:01:46.6]} 25... Be4 {[%clk 0:01:30.2]} 26.
Rc3 {[%clk 0:01:17.8]} 26... Qb7 {[%clk 0:01:30.1]} 27. Bxe4 {[%clk 0:01:11]}
27... Qxe4 {[%clk 0:01:29.7]} 28. Re3 {[%clk 0:00:50]} 28... Qf4 {[%clk
0:01:22.6]} 29. Red3 {[%clk 0:00:49.1]} 29... Rxd4 {[%clk 0:01:18.8]} 30. Rxd4
{[%clk 0:00:17.7]} 30... Rxd4 {[%clk 0:01:17.8]} 31. Re1 {[%clk 0:00:11.1]}
31... Qxg3 {[%clk 0:01:15.1]} 32. fxg3 {[%clk 0:00:12]} 32... Rd5 {[%clk
0:01:14.3]} 33. Rc1 {[%clk 0:00:10.2]} 33... Nxe5 {[%clk 0:01:11.6]} 34. Rc8+
{[%clk 0:00:09]} 34... Kh7 {[%clk 0:01:11.6]} 35. Nxe5 {[%clk 0:00:06.3]} 35...
Rxe5 {[%clk 0:01:11.9]} 36. Rc7 {[%clk 0:00:04.8]} 36... Ra5 {[%clk 0:01:07.3]}
37. Rxf7 {[%clk 0:00:05]} 37... Rxa2 {[%clk 0:01:07.3]} 38. Re7 {[%clk
0:00:05.9]} 38... b5 {[%clk 0:01:06.4]} 39. Rxe6 {[%clk 0:00:06.3]} 39... b4
{[%clk 0:01:06.6]} 40. g4 {[%clk 0:00:04.9]} 40... b3 {[%clk 0:01:06]} 41. Re7
{[%clk 0:00:02]} 41... Ra1+ {[%clk 0:01:05.2]} 42. Kh2 {[%clk 0:00:01.8]} 42...
b2 {[%clk 0:01:06.1]} 43. Rb7 {[%clk 0:00:01.7]} 43... b1=Q {[%clk 0:01:06.5]}
44. Rxb1 {[%clk 0:00:01.7]} 44... Rxb1 {[%clk 0:01:06.8]} 45. h4 {[%clk
0:00:02.4]} 45... a5 {[%clk 0:01:06.9]} 46. Kg3 {[%clk 0:00:01.5]} 46... a4
{[%clk 0:01:07.3]} 0-1

[Event "*** Titled Tuesday Blitz"]
[Site "Chess.com"]
[Date "2020.04.28"]
[Round "4"]
[White "Taran2004"]
[Black "MasterKroket"]
[Result "0-1"]
[WhiteElo "2083"]
[BlackElo "2396"]
[TimeControl "180+1"]
[EndTime "10:40:19 PDT"]
[Termination "MasterKroket won by resignation"]

1. e4 {[%clk 0:03:00.9]} 1... c5 {[%clk 0:03:00.3]} 2. Nc3 {[%clk 0:02:59.9]}
2... Nc6 {[%clk 0:02:59.9]} 3. g3 {[%clk 0:02:59.6]} 3... g6 {[%clk 0:03:00.1]}
4. Bg2 {[%clk 0:03:00]} 4... Bg7 {[%clk 0:03:00.8]} 5. d3 {[%clk 0:02:58.5]}
5... d6 {[%clk 0:03:01.4]} 6. Be3 {[%clk 0:02:58.2]} 6... e6 {[%clk 0:03:00]} 7.
Qd2 {[%clk 0:02:58.4]} 7... Rb8 {[%clk 0:02:59.1]} 8. a4 {[%clk 0:02:57.7]} 8...
Nd4 {[%clk 0:02:56.4]} 9. h4 {[%clk 0:02:56.3]} 9... h6 {[%clk 0:02:48.1]} 10.
Nge2 {[%clk 0:02:53.1]} 10... Ne7 {[%clk 0:02:46.8]} 11. f4 {[%clk 0:02:46.8]}
11... Nec6 {[%clk 0:02:44.1]} 12. O-O {[%clk 0:02:41.3]} 12... Nxe2+ {[%clk
0:02:30.1]} 13. Qxe2 {[%clk 0:02:39.2]} 13... Nd4 {[%clk 0:02:29.9]} 14. Qd2
{[%clk 0:02:38.1]} 14... Bd7 {[%clk 0:02:29.8]} 15. Ne2 {[%clk 0:02:28.9]} 15...
Nxe2+ {[%clk 0:02:29.3]} 16. Qxe2 {[%clk 0:02:18]} 16... Bxb2 {[%clk 0:02:29.9]}
17. Rab1 {[%clk 0:02:18.1]} 17... Bg7 {[%clk 0:02:27.6]} 18. f5 {[%clk
0:02:18.4]} 18... gxf5 {[%clk 0:01:59.7]} 19. exf5 {[%clk 0:02:16.5]} 19... Be5
{[%clk 0:02:00.4]} 20. fxe6 {[%clk 0:02:13.4]} 20... Bxe6 {[%clk 0:01:59.9]} 21.
Bf4 {[%clk 0:02:10.8]} 21... Bxf4 {[%clk 0:01:42.2]} 22. gxf4 {[%clk 0:02:07.3]}
22... Kf8 {[%clk 0:01:30.3]} 23. f5 {[%clk 0:02:06.1]} 23... Bd7 {[%clk
0:01:30.2]} 24. f6 {[%clk 0:02:03.4]} 24... Rg8 {[%clk 0:01:27.1]} 25. Kh2
{[%clk 0:01:56.2]} 25... Rg6 {[%clk 0:01:21.8]} 26. Be4 {[%clk 0:01:50.4]} 26...
Rxf6 {[%clk 0:01:18.8]} 27. Qh5 {[%clk 0:01:49.6]} 27... Bc6 {[%clk 0:01:07.4]}
28. Bg6 {[%clk 0:01:27.6]} 28... Kg7 {[%clk 0:00:45.4]} 29. Bxf7 {[%clk
0:01:23.8]} 29... Qe7 {[%clk 0:00:38.6]} 30. Bg6 {[%clk 0:00:53.4]} 30... Rxg6
{[%clk 0:00:35.8]} 31. Rbe1 {[%clk 0:00:50.7]} 31... Rg2+ {[%clk 0:00:17.9]} 32.
Kh3 {[%clk 0:00:48.7]} 32... Qd7+ {[%clk 0:00:18.6]} 33. Rf5 {[%clk 0:00:47.7]}
33... Rf8 {[%clk 0:00:19.1]} 34. Rf1 {[%clk 0:00:46.7]} 34... Rxf5 {[%clk
0:00:17.5]} 35. Qxf5 {[%clk 0:00:46.2]} 35... Qxf5+ {[%clk 0:00:15.3]} 36. Rxf5
{[%clk 0:00:47.1]} 36... Bd7 {[%clk 0:00:15.5]} 37. Kxg2 {[%clk 0:00:46.6]}
37... Bxf5 {[%clk 0:00:16.2]} 38. Kf3 {[%clk 0:00:47.3]} 38... Be6 {[%clk
0:00:16.2]} 39. Kf4 {[%clk 0:00:47.2]} 39... d5 {[%clk 0:00:16.6]} 40. c3 {[%clk
0:00:47.3]} 40... c4 {[%clk 0:00:16.7]} 41. dxc4 {[%clk 0:00:46]} 41... dxc4
{[%clk 0:00:17.6]} 42. Ke5 {[%clk 0:00:46.8]} 42... Bd7 {[%clk 0:00:18.2]} 43.
a5 {[%clk 0:00:45.8]} 43... b6 {[%clk 0:00:18.8]} 44. axb6 {[%clk 0:00:43.8]}
44... axb6 {[%clk 0:00:19.7]} 45. Kd6 {[%clk 0:00:44.3]} 45... Be8 {[%clk
0:00:19.9]} 46. Ke7 {[%clk 0:00:42.5]} 46... Ba4 {[%clk 0:00:19.4]} 47. Kd6
{[%clk 0:00:42.5]} 47... b5 {[%clk 0:00:20]} 48. Kc5 {[%clk 0:00:42.4]} 48...
Kg6 {[%clk 0:00:20.6]} 49. Kb4 {[%clk 0:00:43.3]} 49... Kh5 {[%clk 0:00:21.2]}
50. Kc5 {[%clk 0:00:44.2]} 50... Kxh4 {[%clk 0:00:21.9]} 0-1

[Event "*** Titled Tuesday Blitz"]
[Site "Chess.com"]
[Date "2020.04.28"]
[Round "4"]
[White "wild_cat99"]
[Black "MatijaOlimpiakosIvic"]
[Result "1/2-1/2"]
[WhiteElo "2561"]
[BlackElo "2763"]
[TimeControl "180+1"]
[EndTime "10:40:22 PDT"]
[Termination "Game drawn - insufficient material"]

1. Nf3 {[%clk 0:03:00.9]} 1... Nf6 {[%clk 0:02:59.8]} 2. c4 {[%clk 0:03:00.4]}
2... c5 {[%clk 0:02:59.5]} 3. Nc3 {[%clk 0:02:59.9]} 3... Nc6 {[%clk 0:02:59.2]}
4. d4 {[%clk 0:02:59.6]} 4... cxd4 {[%clk 0:02:59.2]} 5. Nxd4 {[%clk 0:03:00.5]}
5... g6 {[%clk 0:02:58.9]} 6. e4 {[%clk 0:03:00.3]} 6... Bg7 {[%clk 0:02:58.9]}
7. Be3 {[%clk 0:03:00.8]} 7... O-O {[%clk 0:02:58.3]} 8. f3 {[%clk 0:03:01.2]}
8... d6 {[%clk 0:02:52.6]} 9. Nc2 {[%clk 0:03:01.2]} 9... Be6 {[%clk 0:02:49.3]}
10. Qd2 {[%clk 0:03:01.1]} 10... Rc8 {[%clk 0:02:48.8]} 11. Rc1 {[%clk
0:03:01.2]} 11... Qa5 {[%clk 0:02:36.7]} 12. Na3 {[%clk 0:02:47.1]} 12... Nd7
{[%clk 0:02:33.3]} 13. Be2 {[%clk 0:02:46]} 13... f5 {[%clk 0:02:29.4]} 14. exf5
{[%clk 0:02:44.6]} 14... Bxf5 {[%clk 0:02:29]} 15. O-O {[%clk 0:02:44.9]} 15...
Nde5 {[%clk 0:02:24.2]} 16. Qd5+ {[%clk 0:02:24.9]} 16... Qxd5 {[%clk
0:02:21.6]} 17. Nxd5 {[%clk 0:02:25.8]} 17... Nd7 {[%clk 0:02:18.5]} 18. b3
{[%clk 0:02:22.3]} 18... Bb2 {[%clk 0:02:15.9]} 19. Nb5 {[%clk 0:02:21.9]} 19...
Bxc1 {[%clk 0:02:14.6]} 20. Rxc1 {[%clk 0:02:22.8]} 20... a6 {[%clk 0:02:12.7]}
21. Nd4 {[%clk 0:02:20.9]} 21... Nxd4 {[%clk 0:02:12.7]} 22. Bxd4 {[%clk
0:02:21.4]} 22... Kf7 {[%clk 0:02:12.1]} 23. b4 {[%clk 0:02:08.1]} 23... b5
{[%clk 0:02:09.8]} 24. c5 {[%clk 0:02:03.9]} 24... dxc5 {[%clk 0:02:07.6]} 25.
bxc5 {[%clk 0:02:04.8]} 25... e5 {[%clk 0:02:04.8]} 26. Be3 {[%clk 0:01:59]}
26... Be6 {[%clk 0:02:05.1]} 27. Nb4 {[%clk 0:01:51.2]} 27... a5 {[%clk
0:02:02.6]} 28. Nd3 {[%clk 0:01:51.4]} 28... Bc4 {[%clk 0:02:01.1]} 29. Kf1
{[%clk 0:01:42.9]} 29... Rfd8 {[%clk 0:01:51.5]} 30. Nb2 {[%clk 0:01:39.2]}
30... Bxe2+ {[%clk 0:01:50]} 31. Kxe2 {[%clk 0:01:40.1]} 31... Rc6 {[%clk
0:01:48.3]} 32. Nd3 {[%clk 0:01:38.1]} 32... Rdc8 {[%clk 0:01:47.3]} 33. Rd1
{[%clk 0:01:30.3]} 33... Ke6 {[%clk 0:01:43.9]} 34. Rc1 {[%clk 0:01:11.1]} 34...
b4 {[%clk 0:01:43.7]} 35. Kd2 {[%clk 0:01:05.5]} 35... Nf6 {[%clk 0:01:43.5]}
36. Bg5 {[%clk 0:01:02.2]} 36... Nd7 {[%clk 0:01:37.8]} 37. Be3 {[%clk
0:00:58.9]} 37... Nf6 {[%clk 0:01:37.4]} 38. Bg5 {[%clk 0:00:58.4]} 38... e4
{[%clk 0:01:34.3]} 39. Re1 {[%clk 0:00:57.9]} 39... Rd8 {[%clk 0:01:29.3]} 40.
fxe4 {[%clk 0:00:56.7]} 40... Rxc5 {[%clk 0:01:25.2]} 41. e5 {[%clk 0:00:54.3]}
41... Rxd3+ {[%clk 0:01:25]} 42. Kxd3 {[%clk 0:00:54.2]} 42... Nd7 {[%clk
0:01:22.7]} 43. Bf4 {[%clk 0:00:50.7]} 43... Rc3+ {[%clk 0:01:22.5]} 44. Kd4
{[%clk 0:00:46.4]} 44... Rc2 {[%clk 0:01:22.5]} 45. Rc1 {[%clk 0:00:43.7]} 45...
Rxc1 {[%clk 0:01:14.4]} 46. Bxc1 {[%clk 0:00:44.6]} 46... Nxe5 {[%clk
0:01:14.9]} 47. Bd2 {[%clk 0:00:42.6]} 47... Nf7 {[%clk 0:01:10.4]} 48. Kc5
{[%clk 0:00:40.9]} 48... Nd6 {[%clk 0:01:10.7]} 49. Kb6 {[%clk 0:00:40.5]} 49...
Nc4+ {[%clk 0:01:08.6]} 50. Ka6 {[%clk 0:00:40]} 50... Nxd2 {[%clk 0:01:09.5]}
51. Kxa5 {[%clk 0:00:39.7]} 51... b3 {[%clk 0:01:08.8]} 52. axb3 {[%clk
0:00:38.7]} 52... Nxb3+ {[%clk 0:01:09.7]} 53. Kb4 {[%clk 0:00:38.6]} 53... Kf5
{[%clk 0:01:09.4]} 54. Kxb3 {[%clk 0:00:38.6]} 54... Kf4 {[%clk 0:01:09.9]} 55.
Kc4 {[%clk 0:00:34.8]} 55... Ke3 {[%clk 0:01:10]} 56. Kd5 {[%clk 0:00:31.5]}
56... Kf2 {[%clk 0:01:10.2]} 57. g4 {[%clk 0:00:31.4]} 57... Kg2 {[%clk
0:01:09.6]} 58. g5 {[%clk 0:00:31.1]} 58... Kh3 {[%clk 0:01:03.2]} 59. Ke6
{[%clk 0:00:29.6]} 59... Kg4 {[%clk 0:01:03.4]} 60. Kf6 {[%clk 0:00:29.2]} 60...
Kh5 {[%clk 0:01:01.6]} 61. Kg7 {[%clk 0:00:23.7]} 61... Kxg5 {[%clk 0:01:01.2]}
62. Kxh7 {[%clk 0:00:23.9]} 62... Kh4 {[%clk 0:01:00.9]} 63. Kxg6 {[%clk
0:00:23.9]} 63... Kh3 {[%clk 0:01:01.8]} 64. Kh5 {[%clk 0:00:24.1]} 64... Kxh2
{[%clk 0:01:02.7]} 1/2-1/2

[Event "*** Titled Tuesday Blitz"]
[Site "Chess.com"]
[Date "2020.04.28"]
[Round "4"]
[White "stasiek18"]
[Black "Ranindu2003"]
[Result "0-1"]
[WhiteElo "2340"]
[BlackElo "2538"]
[TimeControl "180+1"]
[EndTime "10:40:22 PDT"]
[Termination "Ranindu2003 won by resignation"]

1. d4 {[%clk 0:03:00.9]} 1... Nf6 {[%clk 0:02:59.5]} 2. Bg5 {[%clk 0:03:00.6]}
2... d5 {[%clk 0:02:58.7]} 3. Bxf6 {[%clk 0:03:00.3]} 3... exf6 {[%clk
0:02:58.3]} 4. e3 {[%clk 0:03:01.2]} 4... Bd6 {[%clk 0:02:56.5]} 5. g3 {[%clk
0:03:01.5]} 5... O-O {[%clk 0:02:56.1]} 6. Bg2 {[%clk 0:03:01.7]} 6... Be6
{[%clk 0:02:56.4]} 7. Ne2 {[%clk 0:03:01.5]} 7... c6 {[%clk 0:02:55.1]} 8. O-O
{[%clk 0:02:59.5]} 8... Nd7 {[%clk 0:02:54.7]} 9. b3 {[%clk 0:02:58]} 9... Re8
{[%clk 0:02:53.8]} 10. Qd3 {[%clk 0:02:57.9]} 10... c5 {[%clk 0:02:41.9]} 11. c4
{[%clk 0:02:54.8]} 11... dxc4 {[%clk 0:02:28.7]} 12. bxc4 {[%clk 0:02:55.7]}
12... cxd4 {[%clk 0:02:28.7]} 13. exd4 {[%clk 0:02:55.8]} 13... Nb6 {[%clk
0:02:23.7]} 14. d5 {[%clk 0:02:46.6]} 14... Bg4 {[%clk 0:02:23.6]} 15. Nbc3
{[%clk 0:02:45.4]} 15... Rc8 {[%clk 0:02:20.6]} 16. Rab1 {[%clk 0:02:21.8]}
16... Qd7 {[%clk 0:02:09.9]} 17. Rxb6 {[%clk 0:02:02.3]} 17... axb6 {[%clk
0:02:08.3]} 18. Nd4 {[%clk 0:02:03.2]} 18... Be5 {[%clk 0:01:58.1]} 19. Ncb5
{[%clk 0:02:00]} 19... Bh5 {[%clk 0:01:31.9]} 20. f4 {[%clk 0:01:43.7]} 20...
Bxd4+ {[%clk 0:01:14.1]} 21. Qxd4 {[%clk 0:01:42.7]} 21... Be2 {[%clk
0:01:07.6]} 22. Rc1 {[%clk 0:00:58.5]} 22... Bxc4 {[%clk 0:00:58.9]} 23. Na7
{[%clk 0:00:54.6]} 23... Ra8 {[%clk 0:00:47.2]} 24. Qxb6 {[%clk 0:00:54.5]}
24... Bxd5 {[%clk 0:00:38.5]} 25. Rd1 {[%clk 0:00:43.9]} 25... Qg4 {[%clk
0:00:18.9]} 26. Rxd5 {[%clk 0:00:35.5]} 26... Re1+ {[%clk 0:00:19]} 27. Bf1
{[%clk 0:00:33.5]} 27... Rxf1+ {[%clk 0:00:19.4]} 28. Kxf1 {[%clk 0:00:33.9]}
28... Qf3+ {[%clk 0:00:20.1]} 29. Kg1 {[%clk 0:00:33.8]} 29... Qxd5 {[%clk
0:00:20.6]} 30. Nb5 {[%clk 0:00:27.8]} 30... Rd8 {[%clk 0:00:18.6]} 31. h4
{[%clk 0:00:24]} 31... Qd1+ {[%clk 0:00:17.5]} 32. Kh2 {[%clk 0:00:23.7]} 32...
h5 {[%clk 0:00:13.1]} 33. Qxb7 {[%clk 0:00:18.2]} 33... Rd2+ {[%clk 0:00:12.6]}
34. Kh3 {[%clk 0:00:18.2]} 34... Qf1+ {[%clk 0:00:13.2]} 0-1